fUSD/lending_fUSD_20250104
["ID","MTS","AMOUNT","RATE_DAILY","PERIOD"]
[347611007,1735949442969,-500.0,0.00011898,2]
[347611008,1735949442979,-500.0,0.00011898,2]
[347611009,1735949442988,-500.0,0.00011898,2]
[347611010,1735949442997,-500.0,0.00011898,2]
[347611011,1735949443009,-605.85,0.00011898,2]
[347611012,1735949443018,-500.0,0.00011898,2]
[347611013,1735949443029,-500.0,0.00011898,2]
[347611014,1735949443039,-593.12,0.00011898,2]
[347611015,1735949443048,-527.99,0.00011898,2]
[347611016,1735949443058,-500.0,0.00011898,2]
[347611017,1735949443067,-500.0,0.00011898,2]
[347611018,1735949443079,-500.0,0.00011898,2]
[347611019,1735949443088,-500.0,0.00011898,2]
[347611020,1735949443098,-500.0,0.00011898,2]
[347611021,1735949443108,-500.0,0.00011898,2]
[347611022,1735949443117,-500.0,0.00011898,2]
[347611023,1735949443127,-500.0,0.00011898,2]
[347611024,1735949443136,-500.0,0.00011898,2]
[347611025,1735949443147,-500.0,0.00011898,2]
[347611026,1735949443157,-500.0,0.00011898,2]
[347611027,1735949443166,-500.0,0.00011898,2]
[347611028,1735949443175,-500.0,0.00011898,2]
[347611029,1735949443185,-500.0,0.00011898,2]
[347611030,1735949443195,-500.0,0.00011898,2]
[347611031,1735949443204,-500.0,0.00011898,2]
[347611032,1735949443213,-500.0,0.00011898,2]
[347611033,1735949443223,-500.0,0.00011898,2]
[347611034,1735949443233,-500.0,0.00011898,2]
[347611035,1735949443243,-500.0,0.00011898,2]
[347611036,1735949443253,-500.0,0.00011898,2]
[347611037,1735949443263,-500.0,0.00011898,2]
[347611038,1735949443272,-577.46,0.00011898,2]
[347611039,1735949443282,-500.0,0.00011898,2]
[347611040,1735949443291,-500.0,0.00011898,2]
[347611041,1735949443301,-569.89,0.00011898,2]
[347611042,1735949443311,-500.0,0.00011898,2]
[347611043,1735949443319,-500.0,0.00011898,2]
[347611044,1735949443329,-500.0,0.00011898,2]
[347611045,1735949443339,-500.0,0.00011898,2]
[347611046,1735949443348,-500.0,0.00011898,2]
[347611047,1735949443357,-500.0,0.00011898,2]
[347611048,1735949443366,-500.0,0.00011898,2]
[347611049,1735949443375,-500.0,0.00011898,2]
[347611050,1735949443383,-559.89,0.00011898,2]
[347611051,1735949443392,-500.0,0.00011898,2]
[347611052,1735949443402,-501.94,0.00011898,2]
[347611053,1735949443411,-500.0,0.00011898,2]
[347611054,1735949443420,-595.44,0.00011898,2]
[347611055,1735949443430,-500.0,0.00011898,2]
[347611056,1735949443439,-500.0,0.00011898,2]
[347611057,1735949443448,-500.0,0.00011898,2]
[347611058,1735949443457,-500.0,0.00011898,2]
[347611059,1735949443466,-524.8,0.00011898,2]
[347611060,1735949443475,-548.87,0.00011898,2]
[347611061,1735949443484,-500.0,0.00011898,2]
[347611062,1735949443494,-500.0,0.00011898,2]
[347611063,1735949443503,-500.0,0.00011898,2]
[347611064,1735949443513,-500.0,0.00011898,2]
[347611065,1735949443522,-500.0,0.00011898,2]
[347611066,1735949443531,-500.0,0.00011898,2]
[347611067,1735949443540,-659.92,0.00011898,2]
[347611068,1735949443550,-500.0,0.00011898,2]
[347611069,1735949443559,-500.0,0.00011898,2]
[347611070,1735949443569,-500.0,0.00011898,2]
[347611071,1735949443578,-500.0,0.00011898,2]
[347611072,1735949443587,-500.0,0.00011898,2]
[347611073,1735949443596,-500.0,0.00011898,2]
[347611074,1735949443605,-500.0,0.00011898,2]
[347611075,1735949443615,-500.0,0.00011898,2]
[347611076,1735949443625,-500.0,0.00011898,2]
[347611077,1735949443635,-500.0,0.00011898,2]
[347611078,1735949443644,-513.71,0.00011898,2]
[347611079,1735949443653,-500.0,0.00011898,2]
[347611080,1735949443663,-504.85,0.00011898,2]
[347611081,1735949443672,-599.4,0.00011898,2]
[347611082,1735949443682,-500.0,0.00011898,2]
[347611083,1735949443691,-500.0,0.00011898,2]
[347611084,1735949443700,-500.0,0.00011898,2]
[347611085,1735949443710,-349.715868,0.00011898,2]
[347611086,1735949443719,-500.0,0.00011898,2]
[347611087,1735949443728,-500.0,0.00011898,2]
[347611088,1735949443886,-500.0,0.00011898,2]
[347611089,1735949443896,-500.0,0.00011898,2]
[347611090,1735949443906,-500.0,0.00011898,2]
[347611091,1735949443915,-500.0,0.00011898,2]
[347611092,1735949443924,-500.0,0.00011898,2]
[347611093,1735949443934,-521.6,0.00011898,2]
[347611094,1735949443944,-500.0,0.00011898,2]
[347611095,1735949443953,-500.0,0.00011898,2]
[347611096,1735949443962,-455.8855482,0.00011898,2]
[347611097,1735949443973,-500.0,0.00011898,2]
[347611098,1735949443982,-500.0,0.00011898,2]
[347611099,1735949443991,-500.0,0.00011898,2]
[347611100,1735949444000,-500.0,0.00011898,2]
[347611101,1735949444029,-500.0,0.00011898,2]
[347611102,1735949444038,-500.0,0.00011898,2]
[347611103,1735949444047,-500.0,0.00011898,2]
[347611104,1735949444059,-543.54,0.00011898,2]
[347611105,1735949444069,-500.0,0.00011898,2]
[347611106,1735949444079,-500.0,0.00011898,2]
[347611107,1735949444088,-500.0,0.00011898,2]
[347611108,1735949444097,-500.0,0.00011898,2]
[347611109,1735949444107,-602.51,0.00011898,2]
[347611110,1735949444117,-500.0,0.00011898,2]
[347611111,1735949444127,-500.0,0.00011898,2]
[347611112,1735949444136,-500.0,0.00011898,2]
[347611113,1735949444146,-500.0,0.00011898,2]
[347611114,1735949444156,-500.0,0.00011898,2]
[347611115,1735949444166,-500.0,0.00011898,2]
[347611116,1735949444175,-500.0,0.00011898,2]
[347611117,1735949444184,-500.0,0.00011898,2]
[347611118,1735949444193,-500.0,0.00011898,2]
[347611119,1735949444203,-500.0,0.00011898,2]
[347611120,1735949444213,-500.0,0.00011898,2]
[347611121,1735949444222,-500.0,0.00011898,2]
[347611122,1735949444233,-500.0,0.00011898,2]
[347611123,1735949444242,-500.0,0.00011898,2]
[347611124,1735949444252,-500.0,0.00011898,2]
[347611125,1735949444262,-500.0,0.00011898,2]
[347611126,1735949444271,-500.0,0.00011898,2]
[347611127,1735949444280,-500.0,0.00011898,2]
[347611128,1735949444290,-610.51,0.00011898,2]
[347611129,1735949444299,-500.0,0.00011898,2]
[347611130,1735949444308,-628.82,0.00011898,2]
[347611131,1735949444317,-500.0,0.00011898,2]
[347611132,1735949444326,-500.0,0.00011898,2]
[347611133,1735949444336,-500.0,0.00011898,2]
[347611134,1735949444345,-500.0,0.00011898,2]
[347611135,1735949444354,-500.0,0.00011898,2]
[347611136,1735949444364,-500.0,0.00011898,2]
[347611137,1735949444373,-500.0,0.00011898,2]
[347611138,1735949444382,-500.0,0.00011898,2]
[347611139,1735949444393,-500.0,0.00011898,2]
[347611140,1735949444402,-500.0,0.00011898,2]
[347611141,1735949444411,-500.0,0.00011898,2]
[347611142,1735949444421,-500.0,0.00011898,2]
[347611143,1735949444430,-500.0,0.00011898,2]
[347611144,1735949444440,-500.0,0.00011898,2]
[347611145,1735949444450,-500.0,0.00011898,2]
[347611146,1735949444459,-500.0,0.00011898,2]
[347611147,1735949444468,-500.0,0.00011898,2]
[347611148,1735949444478,-500.0,0.00011898,2]
[347611149,1735949444487,-500.0,0.00011898,2]
[347611150,1735949444496,-500.0,0.00011898,2]
[347611151,1735949444506,-2347.71,0.00011898,2]
[347611152,1735949444515,-500.0,0.00011898,2]
[347611153,1735949444524,-500.0,0.00011898,2]
[347611154,1735949444534,-500.0,0.00011898,2]
[347611155,1735949444542,-500.0,0.00011898,2]
[347611156,1735949444552,-500.0,0.00011898,2]
[347611157,1735949444562,-500.0,0.00011898,2]
[347611158,1735949444572,-574.91,0.00011898,2]
[347611159,1735949444582,-502.42,0.00011898,2]
[347611160,1735949444591,-500.0,0.00011898,2]
[347611161,1735949444600,-536.86,0.00011898,2]
[347611162,1735949444609,-500.0,0.00011898,2]
[347611163,1735949444621,-582.76,0.00011898,2]
[347611164,1735949444631,-886.84,0.00011898,2]
[347611165,1735949444640,-500.0,0.00011898,2]
[347611166,1735949444649,-563.38,0.00011898,2]
[347611167,1735949444658,-500.0,0.00011898,2]
[347611168,1735949444667,-500.0,0.00011898,2]
[347611169,1735949444678,-500.0,0.00011898,2]
[347611170,1735949444688,-500.0,0.00011898,2]
[347611171,1735949444697,-500.0,0.00011898,2]
[347611172,1735949444706,-500.0,0.00011898,2]
[347611173,1735949444715,-2035.66,0.00011898,2]
[347611174,1735949444725,-500.0,0.00011898,2]
[347611175,1735949444734,-500.0,0.00011898,2]
[347611176,1735949444744,-500.0,0.00011898,2]
[347611177,1735949444753,-500.0,0.00011898,2]
[347611178,1735949444763,-500.0,0.00011898,2]
[347611179,1735949444772,-524.68,0.00011898,2]
[347611180,1735949444781,-681.04,0.00011898,2]
[347611181,1735949444790,-500.0,0.00011898,2]
[347611182,1735949444799,-500.0,0.00011898,2]
[347611183,1735949444808,-500.0,0.00011898,2]
[347611184,1735949444817,-500.0,0.00011898,2]
[347611185,1735949444827,-500.0,0.00011898,2]
[347611186,1735949444838,-500.0,0.00011898,2]
[347611187,1735949444847,-500.0,0.00011898,2]
[347611188,1735949444856,-500.0,0.00011898,2]
[347611189,1735949444865,-500.0,0.00011898,2]
[347611190,1735949444875,-500.0,0.00011898,2]
[347611191,1735949444884,-500.0,0.00011898,2]
[347611192,1735949444895,-500.0,0.00011898,2]
[347611193,1735949444904,-500.0,0.00011898,2]
[347611194,1735949444913,-500.0,0.00011898,2]
[347611195,1735949444923,-538.95,0.00011898,2]
[347611196,1735949444932,-500.0,0.00011898,2]
[347611197,1735949444947,-500.0,0.00011898,2]
[347611198,1735949444957,-552.1,0.00011898,2]
[347611199,1735949444966,-500.0,0.00011898,2]
[347611200,1735949444975,-500.0,0.00011898,2]
[347611201,1735949444985,-3.31278666,0.00011898,2]
[347611202,1735949445031,-381.28266465,0.00011898,2]
[347611203,1735949445042,-184.49454869,0.00011898,2]
[347611204,1735949445054,-82.09807687,0.00011898,2]
[347611205,1735949445065,-417.90192313,0.00011898,2]
[347611206,1735949445076,-217.85,0.00011898,2]
[347611207,1735949445089,-81.95143656,0.00011898,2]
[347611215,1735949445816,-2921.99,0.00011797,2]
[347611217,1735949445826,-540.99856344,0.00011898,2]
[347611219,1735949445836,-500.0,0.00011898,2]
[347611221,1735949445845,-521.41,0.00011898,2]
[347611223,1735949445854,-641.5,0.00011899,2]
[347611225,1735949445863,-1133.77,0.00011899,2]
[347611227,1735949445872,-978.84,0.00011899,2]
[347611229,1735949445881,-2248.41,0.00011899,2]
[347611231,1735949445890,-182.83,0.000119,2]
[347611233,1735949445899,-1000.0,0.00011913,2]
[347611235,1735949445908,-391.75,0.00011942,2]
[347611237,1735949445917,-275.7953,0.00011971,2]
[347611239,1735949445926,-497.9004,0.00011971,2]
[347611241,1735949445935,-613.53682204,0.00011982,2]
[347611243,1735949445945,-500.0,0.00011982,2]
[347611245,1735949445956,-1077.39,0.00011982,2]
[347611247,1735949445965,-500.0,0.00011982,2]
[347611249,1735949445974,-3202.88,0.00011982,2]
[347611251,1735949445983,-1274.22,0.00011982,2]
[347611253,1735949445992,-1990.94,0.00011982,2]
[347611254,1735949446001,-500.0,0.00011982,2]
[347611257,1735949446012,-2571.74,0.00011982,2]
[347611259,1735949446021,-500.0,0.00011982,2]
[347611260,1735949446031,-500.0,0.00011982,2]
[347611263,1735949446041,-182.83,0.00012,2]
[347611264,1735949446051,-501.0,0.00012,2]
[347611265,1735949446060,-395.0,0.00012,2]
[347611266,1735949446070,-500.0,0.00012071,2]
[347611267,1735949446079,-500.0,0.00012071,2]
[347611268,1735949446088,-500.0,0.00012071,2]
[347611269,1735949446097,-500.0,0.00012071,2]
[347611270,1735949446106,-505.76,0.00012071,2]
[347611271,1735949446115,-500.0,0.00012071,2]
[347611272,1735949446124,-500.0,0.00012071,2]
[347611273,1735949446133,-500.0,0.00012071,2]
[347611274,1735949446142,-500.0,0.00012071,2]
[347611275,1735949446151,-500.0,0.00012071,2]
[347611276,1735949446160,-500.0,0.00012071,2]
[347611277,1735949446169,-179.35,0.00012071,2]
[347611278,1735949446177,-580.24,0.00012071,2]
[347611279,1735949446186,-500.0,0.00012071,2]
[347611280,1735949446195,-500.0,0.00012071,2]
[347611281,1735949446205,-500.0,0.00012071,2]
[347611282,1735949446214,-500.0,0.00012071,2]
[347611283,1735949446223,-500.0,0.00012071,2]
[347611284,1735949446234,-525.14,0.00012071,2]
[347611285,1735949446243,-417.45,0.00012071,2]
[347611286,1735949446252,-500.0,0.00012071,2]
[347611287,1735949446263,-500.0,0.00012071,2]
[347611288,1735949446271,-467.76,0.00012071,2]
[347611289,1735949446281,-500.0,0.00012071,2]
[347611290,1735949446290,-500.0,0.00012071,2]
[347611291,1735949446300,-379.75,0.00012071,2]
[347611292,1735949446309,-500.0,0.00012071,2]
[347611293,1735949446318,-500.0,0.00012071,2]
[347611294,1735949446328,-500.0,0.00012071,2]
[347611295,1735949446338,-584.79,0.00012071,2]
[347611296,1735949446347,-500.0,0.00012071,2]
[347611297,1735949446356,-500.0,0.00012071,2]
[347611298,1735949446365,-500.0,0.00012071,2]
[347611299,1735949446376,-500.0,0.00012071,2]
[347611300,1735949446386,-500.0,0.00012071,2]
[347611301,1735949446395,-500.0,0.00012071,2]
[347611302,1735949446406,-500.0,0.00012071,2]
[347611303,1735949446416,-427.76,0.00012071,2]
[347611304,1735949446426,-500.0,0.00012071,2]
[347611305,1735949446435,-500.0,0.00012071,2]
[347611306,1735949446444,-500.0,0.00012071,2]
[347611307,1735949446454,-500.0,0.00012071,2]
[347611308,1735949446464,-500.0,0.00012071,2]
[347611309,1735949446473,-500.0,0.00012071,2]
[347611310,1735949446482,-500.0,0.00012071,2]
[347611311,1735949446490,-500.0,0.00012071,2]
[347611312,1735949446499,-551.7,0.00012071,2]
[347611313,1735949446509,-443.57,0.00012071,2]
[347611314,1735949446518,-500.0,0.00012071,2]
[347611315,1735949446679,-500.0,0.00012071,2]
[347611316,1735949446688,-500.0,0.00012071,2]
[347611317,1735949446698,-500.0,0.00012071,2]
[347611318,1735949446709,-500.0,0.00012071,2]
[347611319,1735949446718,-267.48,0.00012071,2]
[347611320,1735949446727,-565.92,0.00012071,2]
[347611321,1735949446736,-500.0,0.00012071,2]
[347611322,1735949446745,-662.6,0.00012071,2]
[347611323,1735949446754,-689.4,0.00012071,2]
[347611324,1735949446764,-628.54,0.00012071,2]
[347611325,1735949446773,-1088.28,0.00012071,2]
[347611326,1735949446782,-623.4,0.00012071,2]
[347611327,1735949446792,-642.15,0.00012071,2]
[347611328,1735949446802,-156.26,0.00012071,2]
[347611329,1735949446811,-500.0,0.00012071,2]
[347611330,1735949446820,-500.0,0.00012071,2]
[347611331,1735949446829,-500.0,0.00012071,2]
[347611332,1735949446838,-500.0,0.00012071,2]
[347611333,1735949446847,-500.0,0.00012071,2]
[347611334,1735949446856,-500.0,0.00012071,2]
[347611335,1735949446865,-500.0,0.00012071,2]
[347611336,1735949446874,-500.0,0.00012071,2]
[347611337,1735949446883,-1119.67,0.00012071,2]
[347611338,1735949446892,-500.0,0.00012071,2]
[347611339,1735949446901,-796.21,0.00012071,2]
[347611340,1735949446910,-573.36,0.00012071,2]
[347611341,1735949446919,-1278.52,0.00012071,2]
[347611342,1735949446928,-500.0,0.00012071,2]
[347611343,1735949446938,-822.69,0.00012071,2]
[347611344,1735949446950,-967.08,0.00012071,2]
[347611345,1735949446960,-500.0,0.00012071,2]
[347611346,1735949446970,-633.84684635,0.00012071,2]
[347611347,1735949446979,-500.0,0.00012071,2]
[347611348,1735949446990,-500.0,0.00012071,2]
[347611349,1735949446999,-1401.74,0.00012071,2]
[347611350,1735949447010,-515.02,0.00012071,2]
[347611351,1735949447021,-3409.35,0.00012071,2]
[347611352,1735949447030,-500.0,0.00012071,2]
[347611353,1735949447039,-500.0,0.00012071,2]
[347611354,1735949447048,-1376.4,0.00012071,2]
[347611355,1735949447057,-746.93,0.00012071,2]
[347611356,1735949447066,-500.0,0.00012071,2]
[347611357,1735949447075,-500.0,0.00012071,2]
[347611358,1735949447084,-500.0,0.00012071,2]
[347611359,1735949447094,-500.0,0.00012071,2]
[347611360,1735949447103,-715.5,0.00012071,2]
[347611361,1735949447112,-550.47,0.00012071,2]
[347611362,1735949447121,-3487.76,0.00012071,2]
[347611363,1735949447130,-500.0,0.00012071,2]
[347611364,1735949447139,-1626.16,0.00012071,2]
[347611365,1735949447150,-788.23,0.00012071,2]
[347611366,1735949447160,-500.0,0.00012071,2]
[347611367,1735949447169,-831.94,0.00012071,2]
[347611368,1735949447178,-500.0,0.00012071,2]
[347611369,1735949447187,-1790.97,0.00012071,2]
[347611370,1735949447198,-913.74,0.00012071,2]
[347611371,1735949447208,-576.5,0.00012071,2]
[347611372,1735949447218,-500.0,0.00012071,2]
[347611373,1735949447229,-1166.62,0.00012071,2]
[347611374,1735949447238,-557.42,0.00012071,2]
[347611375,1735949447247,-500.0,0.00012071,2]
[347611376,1735949447257,-719.05,0.00012071,2]
[347611377,1735949447266,-814.26,0.00012071,2]
[347611378,1735949447276,-722.25,0.00012071,2]
[347611379,1735949447285,-884.21,0.00012071,2]
[347611380,1735949447294,-1067.82,0.00012071,2]
[347611381,1735949447303,-500.0,0.00012071,2]
[347611382,1735949447312,-909.47,0.00012071,2]
[347611383,1735949447322,-500.0,0.00012071,2]
[347611384,1735949447332,-629.45,0.00012071,2]
[347611385,1735949447341,-886.21,0.00012072,2]
[347611386,1735949447351,-703.59,0.00012072,2]
[347611387,1735949447361,-728.54,0.00012072,2]
[347611388,1735949447371,-500.0,0.00012072,2]
[347611389,1735949447380,-500.0,0.00012072,2]
[347611390,1735949447389,-500.0,0.00012072,2]
[347611391,1735949447398,-500.0,0.00012072,2]
[347611392,1735949447408,-1772.25,0.00012072,2]
[347611393,1735949447417,-1341.17,0.00012072,2]
[347611394,1735949447426,-3203.82,0.00012072,2]
[347611395,1735949447435,-9466.78,0.00012072,2]
[347611396,1735949447444,-500.0,0.00012072,2]
[347611397,1735949447453,-4599.05,0.00012072,2]
[347611398,1735949447463,-4407.43,0.00012072,2]
[347611399,1735949447471,-500.0,0.00012072,2]
[347611400,1735949447482,-682.25,0.00012072,2]
[347611401,1735949447491,-653.83,0.00012072,2]
[347611402,1735949447500,-1091.35700152,0.00012072,2]
[347611403,1735949447543,-283.87299848,0.00012072,2]
[347611404,1735949447556,-672.87700152,0.00012072,2]
[347611405,1735949447579,-2921.99,0.00012071,2]
[347611406,1735949447588,-645.05299848,0.00012072,2]
[347611407,1735949447597,-1371.19,0.00012072,2]
[347611408,1735949447608,-3449.88684127,0.000121,2]
[347611409,1735949447617,-182.83,0.000121,2]
[347611410,1735949447627,-2432.387,0.000121,2]
[347611411,1735949447637,-168.702,0.000121,2]
[347611412,1735949447646,-1227.95,0.0001217,2]
[347611413,1735949447656,-1258.4,0.0001217,2]
[347611414,1735949447666,-610.62,0.0001217,2]
[347611415,1735949447675,-500.0,0.0001217,2]
[347611416,1735949447684,-1250.38,0.0001217,2]
[347611417,1735949447695,-500.0,0.0001217,2]
[347611418,1735949447705,-500.0,0.0001217,2]
[347611419,1735949447714,-1412.76,0.0001217,2]
[347611420,1735949447724,-500.0,0.0001217,2]
[347611421,1735949447733,-532.94,0.0001217,2]
[347611422,1735949447742,-500.0,0.0001217,2]
[347611423,1735949447751,-500.0,0.0001217,2]
[347611424,1735949447761,-500.0,0.0001217,2]
[347611425,1735949447771,-937.21,0.0001217,2]
[347611426,1735949447780,-500.0,0.0001217,2]
[347611427,1735949447790,-500.0,0.0001217,2]
[347611428,1735949447799,-500.0,0.0001217,2]
[347611429,1735949447808,-500.0,0.0001217,2]
[347611430,1735949447818,-1327.64,0.00012171,2]
[347611431,1735949447829,-500.0,0.00012171,2]
[347611432,1735949447837,-843.23,0.00012171,2]
[347611433,1735949447847,-4211.53,0.00012171,2]
[347611434,1735949447857,-500.0,0.00012171,2]
[347611435,1735949447866,-500.0,0.00012171,2]
[347611436,1735949447875,-500.0,0.00012171,2]
[347611437,1735949447884,-671.38,0.00012171,2]
[347611438,1735949447895,-787.71,0.00012171,2]
[347611439,1735949447904,-1478.71,0.00012171,2]
[347611440,1735949447913,-957.50244025,0.00012171,2]
[347611441,1735949447973,-735.50318015,0.00012171,2]
[347611442,1735949448563,-550.0,0.00011,2]
[347611443,1735949448572,-974.06,0.00011479,2]
[347611444,1735949448582,-182.83,0.00011479,2]
[347611445,1735949448591,-322.09400001,0.00011797,2]
[347611446,1735949448602,-187.71599999,0.00011797,2]
[347611447,1735949448612,-158.94184706,0.00011798,2]
[347611448,1735949448621,-485.3543796,0.00012171,2]
[347611449,1735949448630,-413.52634296,0.00012171,2]
[347611450,1735949448641,-608.33365704,0.00012171,2]
[347611451,1735949448651,-500.0,0.00012171,2]
[347611452,1735949448660,-500.0,0.00012171,2]
[347611453,1735949448669,-585.23,0.00012171,2]
[347611454,1735949448678,-1784.72744376,0.00012171,2]
[347611455,1735949448689,-372.74843048,0.00012171,2]
[347611456,1735949448699,-1208.93412576,0.00012171,2]
[347611457,1735949448709,-709.94923521,0.00012171,2]
[347611458,1735949448720,-70.85076479,0.00012171,2]
[347611459,1735949448730,-576.39,0.00012171,2]
[347611460,1735949448739,-909.27,0.00012171,2]
[347611461,1735949448748,-500.0,0.00012171,2]
[347611462,1735949448758,-275.785159,0.00012171,2]
[347611463,1735949448769,-445.72,0.00012171,2]
[347611464,1735949448779,-291.28644014,0.00012172,2]
[347611465,1735949448991,-208.71355986,0.00012172,2]
[347611466,1735949449000,-243.61,0.00012172,2]
[347611467,1735949449010,-779.35,0.00012172,2]
[347611468,1735949449024,-500.0,0.00012172,2]
[347611469,1735949449034,-500.0,0.00012172,2]
[347611470,1735949449043,-621.94,0.00012172,2]
[347611471,1735949449052,-500.0,0.00012172,2]
[347611472,1735949449061,-296.33742152,0.00012172,2]
[347611473,1735949449079,-203.66257848,0.00012172,2]
[347611474,1735949449088,-368.79699203,0.00012172,2]
[347611475,1735949449097,-500.0,0.00012172,2]
[347611476,1735949449106,-500.0,0.00012172,2]
[347611477,1735949449123,-500.0,0.00012172,2]
[347611478,1735949449132,-500.0,0.00012172,2]
[347611479,1735949449141,-500.0,0.00012172,2]
[347611480,1735949449150,-500.0,0.00012172,2]
[347611481,1735949449159,-500.0,0.00012172,2]
[347611482,1735949449168,-603.56,0.00012172,2]
[347611483,1735949449178,-500.0,0.00012172,2]
[347611484,1735949449187,-500.0,0.00012172,2]
[347611485,1735949449195,-500.0,0.00012172,2]
[347611486,1735949449206,-500.0,0.00012172,2]
[347611487,1735949449215,-534.04,0.00012172,2]
[347611488,1735949449370,-160.78,0.00012172,2]
[347611489,1735949449380,-469.09876512,0.00012172,2]
[347611490,1735949449389,-500.0,0.00012172,2]
[347611491,1735949449398,-543.11,0.00012172,2]
[347611492,1735949449408,-500.0,0.00012172,2]
[347611493,1735949449416,-500.0,0.00012172,2]
[347611494,1735949449426,-500.0,0.00012172,2]
[347611495,1735949449435,-500.0,0.00012172,2]
[347611496,1735949449444,-500.0,0.00012172,2]
[347611497,1735949449453,-500.0,0.00012172,2]
[347611498,1735949449463,-500.0,0.00012172,2]
[347611499,1735949449472,-500.0,0.00012172,2]
[347611500,1735949449481,-500.0,0.00012172,2]
[347611501,1735949449490,-263.94,0.00012172,2]
[347611502,1735949449499,-540.34,0.00012172,2]
[347611503,1735949449510,-264.57,0.00012172,2]
[347611504,1735949449519,-500.0,0.00012172,2]
[347611505,1735949449528,-500.0,0.00012172,2]
[347611506,1735949449538,-500.0,0.00012172,2]
[347611507,1735949449547,-500.0,0.00012172,2]
[347611508,1735949449556,-500.0,0.00012172,2]
[347611509,1735949449566,-500.0,0.00012172,2]
[347611510,1735949449575,-500.0,0.00012172,2]
[347611511,1735949449584,-500.0,0.00012172,2]
[347611512,1735949449593,-646.16,0.00012172,2]
[347611513,1735949449602,-569.89,0.00012172,2]
[347611514,1735949449612,-500.0,0.00012172,2]
[347611515,1735949449621,-500.0,0.00012172,2]
[347611516,1735949449630,-500.0,0.00012172,2]
[347611517,1735949449639,-500.0,0.00012172,2]
[347611518,1735949449648,-595.44,0.00012172,2]
[347611519,1735949449657,-500.0,0.00012172,2]
[347611520,1735949449667,-500.0,0.00012172,2]
[347611521,1735949449675,-548.87,0.00012172,2]
[347611522,1735949449684,-500.0,0.00012172,2]
[347611523,1735949449694,-659.92,0.00012172,2]
[347611524,1735949449703,-500.0,0.00012172,2]
[347611525,1735949449712,-500.0,0.00012172,2]
[347611526,1735949449721,-500.0,0.00012172,2]
[347611527,1735949449731,-500.0,0.00012172,2]
[347611528,1735949449740,-513.71,0.00012172,2]
[347611529,1735949449749,-504.85,0.00012172,2]
[347611530,1735949449759,-599.4,0.00012172,2]
[347611531,1735949449768,-500.0,0.00012172,2]
[347611532,1735949449777,-500.0,0.00012172,2]
[347611533,1735949449787,-500.0,0.00012172,2]
[347611534,1735949449796,-521.6,0.00012172,2]
[347611535,1735949449805,-500.0,0.00012172,2]
[347611536,1735949449814,-255.34,0.00012172,2]
[347611537,1735949449824,-500.0,0.00012172,2]